[Event "2nd Hersonissos Open 2018"]
[Site "Hersonissos"]
[Date "2018.06.21"]
[Round "6"]
[White "Aggelakis, Ilias"]
[Black "Lichii, Elizaveta"]
[Result "1/2-1/2"]
[ECO "A15"]
[WhiteElo "1683"]
[BlackElo "1888"]
[Annotator "NA"]
[PlyCount "145"]
[EventDate "2018.06.16"]
[EventType "swiss"]
[EventCountry "GRE"]
[SourceTitle "playchess.com"]
[Source "ChessBase"]
[SourceQuality "1"]
[TimeControl "5400+30"]

1. c4 {[%emt 0:00:00]} Nf6 {[%emt 0:00:29]} 2. Nf3 {[%emt 0:00:00]} e6 {[%emt 0:00:18]} 3. g3 {[%emt 0:00:00]} b6 {[%emt 0:01:04]} 4. Bg2 {[%emt 0:00:00]} Bb7 {[%emt 0:00:05]} 5. O-O {[%emt 0:00:00]} c5 {[%emt 0:01:26]} 6. d4 {[%emt 0:09:50]} d6 {[%emt 0:08:37]} 7. Nc3 {[%emt 0:05:20]} Nbd7 {[%emt 0:01:08]} 8. b3 {[%emt 0:05:13]} Be7 {[%emt 0:03:18]} 9. Bb2 {[%emt 0:00:17]} O-O {[%emt 0:04:37]} 10. e3 {[%emt 0:05:19]} a6 {[%emt 0:06:43]} 11. Qe2 {[%emt 0:01:03]} Qc7 12. Rfd1 {[%emt 0:02:52]} cxd4 {[%emt 0:18:21]} 13. Nxd4 {[%emt 0:00:46]} Rac8 {[%emt 0:08:12]} 14. Rac1 {[%emt 0:03:59]} Qb8 {[%emt 0:01:20]} 15. Qd2 {[%emt 0:06:21]} Nc5 {[%emt 0:04:16]} 16. Nde2 {[%emt 0:05:57]} Bxg2 {[%emt 0:02:45]} 17. Kxg2 {[%emt 0:00:08]} Qb7+ {[%emt 0:00:14]} 18. Kg1 {[%emt 0:00:29]} Ng4 {[%emt 0:07:55]} 19. Nf4 {[%emt 0:02:04]} Ne5 {[%emt 0:00:35]} 20. Qe2 {[%emt 0:10:03]} Nf3+ {[%emt 0:00:19]} 21. Kf1 {[%emt 0:00:40]} Nxh2+ {[%emt 0:00:16]} 22. Ke1 {[%emt 0:00:16]} Nf3+ {[%emt 0:01:46]} 23. Kf1 {[%emt 0:00:04]} Ne5 {[%emt 0:11:14]} 24. Ng2 {[%emt 0:01:56]} f5 {[%emt 0:01:17]} 25. Nb1 {[%emt 0:06:40]} Ncd7 {[%emt 0:02:35]} 26. Bxe5 {[%emt 0:00:29]} Nxe5 {[%emt 0:00:05]} 27. Nd2 {[%emt 0:00:30]} Rf6 {[%emt 0:01:12]} 28. Kg1 {[%emt 0:00:36]} Rcf8 {[%emt 0:02:51]} 29. Rc2 {[%emt 0:00:39]} Rh6 {[%emt 0:00:23]} 30. e4 {[%emt 0:00:27]} fxe4 {[%emt 0:00:38]} 31. Qxe4 {[%emt 0:00:27]} Qxe4 {[%emt 0:01:33]} 32. Nxe4 {[%emt 0:00:02]} Nf3+ {[%emt 0:00:10]} 33. Kf1 {[%emt 0:00:07]} Rh1+ {[%emt 0:00:54]} 34. Ke2 {[%emt 0:00:04]} Rxd1 {[%emt 0:01:30]} 35. Kxd1 {[%emt 0:00:24]} g5 {[%emt 0:01:20]} 36. Ne3 {[%emt 0:00:15]} h6 {[%emt 0:00:38]} 37. Rc3 {[%emt 0:02:12]} Ne5 {[%emt 0:00:32]} 38. Ke2 {[%emt 0:00:36]} Kg7 {[%emt 0:04:31]} 39. Rc1 {[%emt 0:00:07]} Ng6 {[%emt 0:00:29]} 40. Rd1 {[%emt 0:00:00]} Rd8 {[%emt 0:00:00]} 41. Nc2 {[%emt 0:00:00]} d5 {[%emt 0:00:00]} 42. cxd5 {[%emt 0:00:00]} exd5 {[%emt 0:00:00]} 43. Nd2 {[%emt 0:00:00]} Bf6 {[%emt 0:00:00]} 44. Nf3 {[%emt 0:00:00]} a5 {[%emt 0:00:00]} 45. Ncd4 {[%emt 0:00:00]} Bxd4 {[%emt 0:00:00]} 46. Nxd4 {[%emt 0:00:00]} Kf6 {[%emt 0:00:00]} 47. Rc1 {[%emt 0:00:00]} Rd6 {[%emt 0:00:00]} 48. Rh1 {[%emt 0:00:00]} Ke5 {[%emt 0:00:00]} 49. Nf3+ {[%emt 0:00:00]} Ke4 {[%emt 0:00:00]} 50. Rxh6 {[%emt 0:00:00]} Nf4+ {[%emt 0:00:00]} 51. gxf4 {[%emt 0:00:00]} Rxh6 {[%emt 0:00:00]} 52. fxg5 {[%emt 0:00:00]} Rg6 {[%emt 0:00:00]} 53. a3 {[%emt 0:00:00]} Rg7 {[%emt 0:00:00]} 54. Nd2+ {[%emt 0:00:00]} Kf4 {[%emt 0:00:00]} 55. Kd3 {[%emt 0:00:00]} Rxg5 {[%emt 0:00:00]} 56. Kd4 {[%emt 0:00:00]} Re5 {[%emt 0:01:03]} 57. Nb1 {[%emt 0:00:00]} Kf5 {[%emt 0:00:58]} 58. Nc3 {[%emt 0:00:00]} Ke6 {[%emt 0:00:10]} 59. f3 {[%emt 0:00:00]} Rf5 {[%emt 0:02:36]} 60. Ke3 {[%emt 0:00:00]} Ke5 {[%emt 0:00:19]} 61. Ne2 {[%emt 0:00:00]} Kd6 {[%emt 0:02:31]} 62. f4 {[%emt 0:00:00]} Kc5 {[%emt 0:00:24]} 63. Ng3 {[%emt 0:00:00]} Rf7 {[%emt 0:00:39]} 64. f5 {[%emt 0:00:00]} b5 {[%emt 0:00:56]} 65. Kd3 {[%emt 0:00:00]} Rf6 {[%emt 0:00:46]} 66. Kc3 {[%emt 0:00:00]} d4+ {[%emt 0:01:07]} 67. Kd3 {[%emt 0:00:00]} Kd5 {[%emt 0:00:05]} 68. Ne2 {[%emt 0:00:00]} Rxf5 {[%emt 0:00:12]} 69. Nxd4 {[%emt 0:00:00]} Rf4 {[%emt 0:00:44]} 70. Nxb5 {[%emt 0:00:00]} Rf3+ {[%emt 0:00:07]} 71. Kc2 {[%emt 0:00:00]} Rf2+ {[%emt 0:00:41]} 72. Kd3 {[%emt 0:00:00]} Rf3+ {[%emt 0:00:09] Kd4+} 73. Kc2 {[%emt 0:00:00]} 1/2-1/2

[Event "2nd Hersonissos Open 2018"]
[Site "Hersonissos"]
[Date "2018.06.21"]
[Round "6"]
[White "Kotsinis, Alexandros"]
[Black "Brokalakis - Gounaris, Christos"]
[Result "0-1"]
[ECO "E04"]
[WhiteElo "1655"]
[BlackElo "1851"]
[Annotator "NA"]
[PlyCount "114"]
[EventDate "2018.06.16"]
[EventType "swiss"]
[EventCountry "GRE"]
[SourceTitle "playchess.com"]
[Source "ChessBase"]
[SourceQuality "1"]
[TimeControl "5400+30"]

1. d4 {[%emt 0:00:00]} Nf6 {[%emt 0:01:20]} 2. c4 {[%emt 0:00:00]} e6 {[%emt 0:00:05]} 3. g3 {[%emt 0:00:00]} d5 {[%emt 0:00:22]} 4. Nf3 {[%emt 0:00:02]} dxc4 {[%emt 0:00:29]} 5. Bg2 {[%emt 0:01:12]} Bb4+ {[%emt 0:02:02]} 6. Bd2 {[%emt 0:01:31]} c5 {[%emt 0:01:28]} 7. O-O {[%emt 0:08:45]} O-O {[%emt 0:02:43]} 8. Na3 {[%emt 0:06:07]} Nc6 {[%emt 0:28:39]} 9. dxc5 {[%emt 0:09:31]} Bxc5 {[%emt 0:03:29]} 10. Nxc4 {[%emt 0:00:11]} Nd5 {[%emt 0:05:40]} 11. Rc1 {[%emt 0:10:04]} Qe7 {[%emt 0:01:53]} 12. a3 {[%emt 0:08:05]} b5 {[%emt 0:06:31]} 13. b4 {[%emt 0:12:12]} bxc4 {[%emt 0:02:56]} 14. bxc5 {[%emt 0:02:45]} Qxc5 {[%emt 0:03:49]} 15. Qc2 {[%emt 0:13:30]} Ba6 {[%emt 0:03:51]} 16. Ng5 {[%emt 0:02:14]} g6 {[%emt 0:07:44]} 17. e4 {[%emt 0:09:22]} Nde7 {[%emt 0:07:43]} 18. Be3 {[%emt 0:00:51]} Qa5 {[%emt 0:00:45]} 19. e5 {[%emt 0:07:12]} Rac8 {[%emt 0:02:59]} 20. f4 {[%emt 0:01:01]} Qxa3 {[%emt 0:01:30]} 21. Qf2 {[%emt 0:00:55]} Nb8 {[%emt 0:07:02]} 22. Ra1 {[%emt 0:01:40]} Qc3 {[%emt 0:01:43]} 23. Ne4 {[%emt 0:01:06]} Qd3 {[%emt 0:00:44]} 24. Rfd1 {[%emt 0:00:08]} Qb3 {[%emt 0:00:10]} 25. Rdb1 {[%emt 0:00:49]} Qd3 {[%emt 0:00:11]} 26. Nc5 {[%emt 0:00:07]} Qd8 {[%emt 0:00:55]} 27. Nxa6 {[%emt 0:00:09]} Nxa6 {[%emt 0:00:12]} 28. Rxa6 {[%emt 0:00:01]} Nf5 {[%emt 0:00:37]} 29. Bc5 {[%emt 0:00:44]} Qd3 {[%emt 0:01:01]} 30. Rb7 {[%emt 0:00:39]} c3 {[%emt 0:00:47]} 31. Bf1 {[%emt 0:00:19]} Qd5 {[%emt 0:00:47]} 32. Rb5 {[%emt 0:01:39]} Rfd8 {[%emt 0:01:24]} 33. Ra2 {[%emt 0:02:34]} Qd1 {[%emt 0:01:00]} 34. Qc2 {[%emt 0:00:41]} Qe1 {[%emt 0:02:54]} 35. Bf2 {[%emt 0:00:19]} Qd1 {[%emt 0:00:32]} 36. Qxd1 {[%emt 0:00:15]} Rxd1 37. Rc5 {[%emt 0:00:54]} Rb8 {[%emt 0:00:27]} 38. Kg2 {[%emt 0:00:46]} Rb2 {[%emt 0:00:04]} 39. Rxa7 {[%emt 0:00:37]} Ne3+ {[%emt 0:02:16]} 40. Kf3 {[%emt 0:00:00]} Rxf1 {[%emt 0:00:00]} 41. Kxe3 {[%emt 0:00:00]} c2 {[%emt 0:00:00]} 42. Rac7 {[%emt 0:00:00]} Rxf2 {[%emt 0:00:00]} 43. h4 {[%emt 0:00:00]} Rg2 {[%emt 0:00:00]} 44. Kf3 {[%emt 0:00:00]} h5 {[%emt 0:00:00]} 45. Rc3 {[%emt 0:00:00]} Rh2 {[%emt 0:00:00]} 46. R7c5 {[%emt 0:00:00]} Ra2 {[%emt 0:00:00]} 47. Rc7 {[%emt 0:00:00]} Kg7 {[%emt 0:00:11]} 48. Rc8 {[%emt 0:00:00]} Rd2 {[%emt 0:01:00]} 49. R8c7 {[%emt 0:00:00]} c1=Q {[%emt 0:00:44]} 50. Rxc1 {[%emt 0:00:00]} Rd3+ {[%emt 0:00:08]} 51. Ke4 {[%emt 0:00:00]} Rxg3 {[%emt 0:00:01]} 52. R1c4 {[%emt 0:00:00]} Raa3 {[%emt 0:01:32]} 53. Rc2 {[%emt 0:00:00]} Ra4+ {[%emt 0:01:21]} 54. R2c4 {[%emt 0:00:00]} Rxc4+ {[%emt 0:00:35]} 55. Rxc4 {[%emt 0:00:00]} Rh3 {[%emt 0:00:18]} 56. Rb4 {[%emt 0:00:00]} Rxh4 {[%emt 0:00:15]} 57. Kf3 {[%emt 0:00:00]} g5 {[%emt 0:00:18]} 0-1

[Event "2nd Hersonissos Open 2018"]
[Site "Hersonissos"]
[Date "2018.06.21"]
[Round "6"]
[White "Kozyris, Ilias"]
[Black "Parker, Keith"]
[Result "0-1"]
[ECO "B12"]
[WhiteElo "1570"]
[BlackElo "1846"]
[Annotator "NA"]
[PlyCount "110"]
[EventDate "2018.06.16"]
[EventType "swiss"]
[EventCountry "GRE"]
[SourceTitle "playchess.com"]
[Source "ChessBase"]
[SourceQuality "1"]
[TimeControl "5400+30"]

1. e4 {[%emt 0:06:04]} c6 {[%emt 0:00:05]} 2. d4 {[%emt 0:00:12]} d5 {[%emt 0:00:02]} 3. e5 {[%emt 0:00:16]} Bf5 {[%emt 0:00:03]} 4. h4 {[%emt 0:00:10]} h5 {[%emt 0:03:07]} 5. Nf3 {[%emt 0:02:16]} e6 {[%emt 0:00:38]} 6. Nc3 {[%emt 0:01:24]} Nd7 {[%emt 0:03:47]} 7. Bd3 {[%emt 0:02:02]} Ne7 {[%emt 0:02:53]} 8. Ne2 {[%emt 0:06:18]} Bxd3 {[%emt 0:01:51]} 9. Qxd3 {[%emt 0:00:02]} Nf5 {[%emt 0:00:41]} 10. Ng3 {[%emt 0:00:39]} Nxg3 {[%emt 0:00:37]} 11. fxg3 {[%emt 0:04:02]} Qa5+ {[%emt 0:03:31]} 12. c3 {[%emt 0:02:15]} Be7 {[%emt 0:02:53]} 13. O-O {[%emt 0:04:05]} Qb6 {[%emt 0:05:28]} 14. Bg5 {[%emt 0:05:55]} c5 {[%emt 0:14:37]} 15. Bxe7 {[%emt 0:04:10]} Kxe7 {[%emt 0:00:22]} 16. Ng5 {[%emt 0:02:32]} Raf8 {[%emt 0:00:53]} 17. Rxf7+ {[%emt 0:11:11]} Rxf7 {[%emt 0:04:42]} 18. Nxf7 {[%emt 0:00:16]} Kxf7 {[%emt 0:05:42]} 19. Rf1+ {[%emt 0:00:30]} Ke7 {[%emt 0:11:43]} 20. Qg6 {[%emt 0:00:37]} Kd8 {[%emt 0:00:17]} 21. Qxg7 {[%emt 0:00:23]} Re8 {[%emt 0:00:29]} 22. Rf7 {[%emt 0:01:06]} Qc6 {[%emt 0:01:15]} 23. Qg5+ {[%emt 0:00:59]} Kc8 {[%emt 0:00:19]} 24. Qxh5 {[%emt 0:01:18]} cxd4 {[%emt 0:02:18]} 25. cxd4 {[%emt 0:00:52]} Qc1+ {[%emt 0:08:23]} 26. Rf1 {[%emt 0:00:24]} Qe3+ {[%emt 0:00:32]} 27. Kh2 {[%emt 0:00:13]} Rg8 28. Rf3 {[%emt 0:00:11]} Qxd4 {[%emt 0:02:20]} 29. Rc3+ {[%emt 0:00:29]} Kd8 {[%emt 0:03:30]} 30. Qf7 {[%emt 0:04:09]} Re8 {[%emt 0:00:25]} 31. Rc8+ {[%emt 0:12:30]} Kxc8 {[%emt 0:00:14]} 32. Qxe8+ {[%emt 0:00:08]} Kc7 {[%emt 0:00:30]} 33. Qxe6 {[%emt 0:00:09]} Qxe5 {[%emt 0:01:17]} 34. Qxe5+ {[%emt 0:00:49]} Nxe5 {[%emt 0:00:06]} 35. Kg1 {[%emt 0:00:22]} Ng4 {[%emt 0:01:39]} 36. Kf1 {[%emt 0:02:21]} Kd6 {[%emt 0:00:33]} 37. Ke2 {[%emt 0:00:08]} Ke5 {[%emt 0:00:32]} 38. Kd3 {[%emt 0:01:29]} d4 {[%emt 0:04:17]} 39. b3 {[%emt 0:00:47]} b5 {[%emt 0:02:17]} 40. a3 {[%emt 0:00:00]} Nf6 {[%emt 0:00:00]} 41. Ke2 {[%emt 0:00:00]} Ke4 {[%emt 0:00:00]} 42. Kd2 {[%emt 0:00:00]} d3 {[%emt 0:00:00]} 43. a4 {[%emt 0:00:00]} b4 {[%emt 0:00:00]} 44. a5 {[%emt 0:00:00]} a6 {[%emt 0:00:00]} 45. g4 {[%emt 0:00:00]} Nxg4 {[%emt 0:00:00]} 46. h5 {[%emt 0:00:00]} Nh6 {[%emt 0:00:00]} 47. g3 {[%emt 0:00:00]} Ng4 {[%emt 0:00:00]} 48. h6 {[%emt 0:00:00]} Nxh6 {[%emt 0:00:00]} 49. g4 {[%emt 0:00:00]} Nxg4 {[%emt 0:00:00]} 50. Ke1 {[%emt 0:00:00]} Ke3 {[%emt 0:00:00]} 51. Kd1 {[%emt 0:00:00]} Nf2+ {[%emt 0:00:00]} 52. Kc1 {[%emt 0:00:00]} d2+ {[%emt 0:00:00]} 53. Kb2 {[%emt 0:00:00]} d1=Q {[%emt 0:00:00]} 54. Ka2 {[%emt 0:00:00]} Qd2+ {[%emt 0:00:00]} 55. Ka1 {[%emt 0:00:00]} Nd3 {[%emt 0:00:00]} 0-1

[Event "2nd Hersonissos Open 2018"]
[Site "Hersonissos"]
[Date "2018.06.22"]
[Round "7"]
[White "Hommeles, Theo"]
[Black "Umbetov, Kazybek"]
[Result "1-0"]
[ECO "B92"]
[WhiteElo "2361"]
[BlackElo "2001"]
[Annotator "NA"]
[PlyCount "73"]
[EventDate "2018.06.16"]
[EventType "swiss"]
[EventCountry "GRE"]
[SourceTitle "playchess.com"]
[Source "ChessBase"]
[SourceQuality "1"]
[TimeControl "5400+30"]

1. e4 {[%emt 0:00:00]} c5 {[%emt 0:01:01]} 2. Nf3 {[%emt 0:00:00]} d6 {[%emt 0:00:03]} 3. d4 {[%emt 0:00:00]} cxd4 {[%emt 0:00:04]} 4. Nxd4 {[%emt 0:00:00]} Nf6 {[%emt 0:00:04]} 5. Nc3 {[%emt 0:00:00]} a6 {[%emt 0:00:07]} 6. Be2 {[%emt 0:00:50]} e5 {[%emt 0:00:39]} 7. Nb3 {[%emt 0:00:10]} Be7 {[%emt 0:00:14]} 8. g4 {[%emt 0:00:27]} O-O {[%emt 0:01:03]} 9. g5 {[%emt 0:01:19]} Ne8 {[%emt 0:00:17]} 10. Nd5 {[%emt 0:02:11]} Be6 {[%emt 0:01:49]} 11. Rg1 {[%emt 0:12:52]} Nd7 {[%emt 0:01:23]} 12. Be3 {[%emt 0:07:57]} Rc8 {[%emt 0:00:54]} 13. h4 {[%emt 0:06:08]} Nc7 {[%emt 0:04:50]} 14. c4 {[%emt 0:05:43]} b5 {[%emt 0:03:56]} 15. Rc1 {[%emt 0:06:56]} bxc4 {[%emt 0:02:49]} 16. Bxc4 {[%emt 0:01:06]} Nxd5 {[%emt 0:02:24]} 17. Bxd5 {[%emt 0:07:33]} Rxc1 {[%emt 0:01:48]} 18. Qxc1 {[%emt 0:04:21]} Bxd5 {[%emt 0:09:40]} 19. exd5 {[%emt 0:00:06]} f5 {[%emt 0:04:37]} 20. Qc6 {[%emt 0:05:45]} f4 {[%emt 0:05:16]} 21. Bd2 {[%emt 0:00:01]} e4 {[%emt 0:00:35]} 22. Bc3 {[%emt 0:00:08]} e3 {[%emt 0:04:46]} 23. f3 {[%emt 0:08:47]} Qe8 {[%emt 0:02:39]} 24. Ke2 {[%emt 0:00:15]} Ne5 {[%emt 0:16:39]} 25. Qxe8 {[%emt 0:03:52]} Rxe8 {[%emt 0:00:01]} 26. Nd4 {[%emt 0:00:19]} Rc8 {[%emt 0:03:29]} 27. Ne6 {[%emt 0:10:14]} Rc4 {[%emt 0:00:01]} 28. Rd1 {[%emt 0:00:09]} h5 {[%emt 0:02:44]} 29. Bxe5 {[%emt 0:03:08]} dxe5 {[%emt 0:00:02]} 30. d6 {[%emt 0:00:07]} Kf7 {[%emt 0:00:31]} 31. dxe7 {[%emt 0:00:26]} Kxe7 {[%emt 0:01:03]} 32. Nxg7 {[%emt 0:00:10]} e4 {[%emt 0:04:18]} 33. fxe4 {[%emt 0:00:28]} Rc2+ {[%emt 0:00:11]} 34. Kd3 {[%emt 0:00:52]} Rxb2 {[%emt 0:00:00]} 35. Nxh5 {[%emt 0:01:19]} e2 {[%emt 0:00:05]} 36. Re1 {[%emt 0:00:03]} f3 {[%emt 0:00:04]} 37. Ke3 {[%emt 0:00:04]} 1-0

[Event "2nd Hersonissos Open 2018"]
[Site "Hersonissos"]
[Date "2018.06.22"]
[Round "7"]
[White "Risting, Eivind Olav"]
[Black "Lobersli, Henrik Oie"]
[Result "1-0"]
[ECO "A05"]
[WhiteElo "2301"]
[BlackElo "2134"]
[Annotator "NA"]
[PlyCount "65"]
[EventDate "2018.06.16"]
[EventType "swiss"]
[EventCountry "GRE"]
[SourceTitle "playchess.com"]
[Source "ChessBase"]
[SourceQuality "1"]
[TimeControl "5400+30"]

1. Nf3 {[%emt 0:00:00]} Nf6 {[%emt 0:01:07]} 2. g3 {[%emt 0:00:27]} g6 {[%emt 0:02:18]} 3. b3 {[%emt 0:03:14]} d5 {[%emt 0:03:20]} 4. Bb2 {[%emt 0:00:21]} Bg7 {[%emt 0:00:24]} 5. c4 {[%emt 0:00:12]} c6 {[%emt 0:01:43]} 6. Bg2 {[%emt 0:00:09]} O-O {[%emt 0:00:31]} 7. O-O {[%emt 0:00:26]} Bg4 {[%emt 0:07:06]} 8. d4 {[%emt 0:04:23]} Nbd7 {[%emt 0:08:34]} 9. Nbd2 {[%emt 0:01:19]} Bxf3 {[%emt 0:08:08]} 10. Bxf3 {[%emt 0:01:38]} Re8 {[%emt 0:00:26]} 11. Qc2 {[%emt 0:06:07]} e5 {[%emt 0:04:22]} 12. dxe5 Nxe5 {[%emt 0:00:21]} 13. Bg2 {[%emt 0:43:15]} Qe7 {[%emt 0:11:07]} 14. e3 {[%emt 0:01:30]} Rad8 {[%emt 0:00:54]} 15. Rad1 {[%emt 0:05:09]} h5 {[%emt 0:05:33]} 16. Bd4 {[%emt 0:02:13]} b6 {[%emt 0:08:55]} 17. cxd5 {[%emt 0:03:52]} Nxd5 {[%emt 0:07:33]} 18. Bxe5 {[%emt 0:08:38]} Bxe5 {[%emt 0:01:51]} 19. Bxd5 {[%emt 0:03:18]} Rxd5 {[%emt 0:01:41]} 20. Nf3 {[%emt 0:04:17]} Rxd1 {[%emt 0:02:43]} 21. Rxd1 {[%emt 0:00:21]} c5 {[%emt 0:00:17]} 22. Qe4 {[%emt 0:01:06]} Bf6 {[%emt 0:01:58]} 23. Qf4 {[%emt 0:02:54]} Rd8 {[%emt 0:03:02]} 24. Rxd8+ {[%emt 0:00:10]} Qxd8 {[%emt 0:00:01]} 25. h4 {[%emt 0:00:56]} Kg7 {[%emt 0:02:25]} 26. e4 {[%emt 0:00:26]} Bb2 {[%emt 0:02:23]} 27. Kg2 {[%emt 0:01:10]} b5 {[%emt 0:01:56]} 28. Qe3 {[%emt 0:05:25]} Qd6 {[%emt 0:02:20]} 29. Qe2 {[%emt 0:00:18]} Ba3 {[%emt 0:08:10]} 30. Qxb5 {[%emt 0:00:03]} Qd1 {[%emt 0:00:08]} 31. Qa6 {[%emt 0:00:43]} Bb2 {[%emt 0:03:22]} 32. Qxa7 {[%emt 0:00:10]} Bd4 {[%emt 0:00:10]} 33. Ng5 {[%emt 0:00:22]} 1-0

[Event "2nd Hersonissos Open 2018"]
[Site "Hersonissos"]
[Date "2018.06.22"]
[Round "7"]
[White "Ranaldi, Lucas"]
[Black "Haug, Johannes"]
[Result "1/2-1/2"]
[ECO "A13"]
[WhiteElo "2283"]
[BlackElo "2401"]
[Annotator "NA"]
[PlyCount "34"]
[EventDate "2018.06.16"]
[EventType "swiss"]
[EventCountry "GRE"]
[SourceTitle "playchess.com"]
[Source "ChessBase"]
[SourceQuality "1"]
[TimeControl "5400+30"]

1. c4 {[%emt 0:00:00]} e6 {[%emt 0:05:39]} 2. Nc3 {[%emt 0:00:00]} d5 {[%emt 0:00:12]} 3. d4 {[%emt 0:00:04]} Bb4 {[%emt 0:00:09]} 4. e3 {[%emt 0:00:10]} Nf6 {[%emt 0:01:08]} 5. a3 {[%emt 0:00:10]} Be7 {[%emt 0:08:32]} 6. Nf3 {[%emt 0:01:38]} O-O {[%emt 0:01:39]} 7. Qc2 {[%emt 0:05:00]} b6 {[%emt 0:04:12]} 8. cxd5 {[%emt 0:02:18]} exd5 {[%emt 0:00:37]} 9. b4 {[%emt 0:08:00]} Bb7 {[%emt 0:03:16]} 10. Be2 {[%emt 0:04:03]} Nbd7 {[%emt 0:04:24]} 11. O-O {[%emt 0:01:44]} a6 {[%emt 0:04:01]} 12. Qb3 {[%emt 0:10:12]} Rb8 {[%emt 0:16:42]} 13. Rd1 {[%emt 0:04:09]} Bd6 {[%emt 0:09:34]} 14. a4 {[%emt 0:10:54]} c5 {[%emt 0:04:02]} 15. bxc5 {[%emt 0:03:33]} bxc5 {[%emt 0:00:14]} 16. dxc5 {[%emt 0:00:43]} Nxc5 {[%emt 0:02:46]} 17. Qa2 {[%emt 0:02:25]} Qc7 {[%emt 0:03:14]} 1/2-1/2

[Event "2nd Hersonissos Open 2018"]
[Site "Hersonissos"]
[Date "2018.06.22"]
[Round "7"]
[White "Djingarova, Emilia"]
[Black "Maris, Ioannis"]
[Result "1-0"]
[ECO "B00"]
[WhiteElo "2218"]
[BlackElo "1915"]
[Annotator "NA"]
[PlyCount "77"]
[EventDate "2018.06.16"]
[EventType "swiss"]
[EventCountry "GRE"]
[SourceTitle "playchess.com"]
[Source "ChessBase"]
[SourceQuality "1"]
[TimeControl "5400+30"]

1. e4 {[%emt 0:07:30]} d6 {[%emt 0:01:10]} 2. d4 {[%emt 0:00:19]} Nf6 {[%emt 0:00:16]} 3. Bd3 {[%emt 0:01:48]} e5 {[%emt 0:01:34]} 4. dxe5 {[%emt 0:02:55]} dxe5 {[%emt 0:00:03]} 5. Nf3 {[%emt 0:00:08]} Nbd7 {[%emt 0:04:24]} 6. O-O {[%emt 0:01:02]} Be7 {[%emt 0:00:13]} 7. Nbd2 {[%emt 0:02:51]} c6 {[%emt 0:01:28]} 8. Nc4 {[%emt 0:00:52]} Qc7 {[%emt 0:00:02]} 9. a4 {[%emt 0:00:10]} O-O {[%emt 0:04:26]} 10. Bd2 {[%emt 0:05:14]} Ne8 {[%emt 0:00:46]} 11. Bc3 {[%emt 0:02:31]} f6 {[%emt 0:00:06]} 12. b4 {[%emt 0:01:13]} Nd6 {[%emt 0:03:58]} 13. Nxd6 {[%emt 0:14:11]} Bxd6 {[%emt 0:00:12]} 14. Bc4+ {[%emt 0:01:05]} Kh8 {[%emt 0:00:02]} 15. Nh4 {[%emt 0:00:32]} g6 {[%emt 0:03:01]} 16. Qd2 {[%emt 0:06:03]} Nb6 {[%emt 0:04:47]} 17. Bb3 {[%emt 0:00:34]} Kg7 {[%emt 0:03:39]} 18. a5 {[%emt 0:01:11]} Nd7 {[%emt 0:02:10]} 19. Bb2 {[%emt 0:01:07]} Nb8 {[%emt 0:00:58]} 20. Rad1 {[%emt 0:04:18]} Rd8 {[%emt 0:01:37]} 21. Bc1 {[%emt 0:07:51]} g5 {[%emt 0:00:07]} 22. Nf5+ {[%emt 0:03:45]} Bxf5 {[%emt 0:00:04]} 23. exf5 {[%emt 0:00:03]} Na6 {[%emt 0:00:41]} 24. Qe2 {[%emt 0:00:46]} Bxb4 {[%emt 0:18:36]} 25. h4 {[%emt 0:03:03]} gxh4 {[%emt 0:08:07]} 26. Qh5 {[%emt 0:05:31]} Kh8 {[%emt 0:01:05]} 27. Qxh4 {[%emt 0:03:09]} Qe7 {[%emt 0:04:11]} 28. Bb2 {[%emt 0:07:24]} Bxa5 {[%emt 0:08:59]} 29. f4 {[%emt 0:00:42]} Bb6+ {[%emt 0:01:54]} 30. Kh1 {[%emt 0:00:13]} Bd4 {[%emt 0:00:02]} 31. c3 {[%emt 0:07:03]} Bc5 {[%emt 0:09:31]} 32. fxe5 {[%emt 0:00:40]} Rxd1 {[%emt 0:01:00]} 33. Rxd1 {[%emt 0:00:12]} Qxe5 {[%emt 0:12:51]} 34. Be6 {[%emt 0:00:27]} Be7 {[%emt 0:02:47]} 35. Re1 {[%emt 0:03:18]} Qc7 {[%emt 0:00:26]} 36. c4 {[%emt 0:00:26]} Rf8 {[%emt 0:00:02]} 37. Re3 {[%emt 0:02:20]} Bd8 {[%emt 0:00:53]} 38. Rg3 {[%emt 0:00:34]} Qe7 {[%emt 0:00:53]} 39. Qg5 {[%emt 0:01:38]} 1-0

[Event "2nd Hersonissos Open 2018"]
[Site "Hersonissos"]
[Date "2018.06.22"]
[Round "7"]
[White "Sielicki, Tomasz"]
[Black "Spirou, Gerasimos"]
[Result "1-0"]
[ECO "A45"]
[WhiteElo "1963"]
[BlackElo "1716"]
[Annotator "NA"]
[PlyCount "43"]
[EventDate "2018.06.16"]
[EventType "swiss"]
[EventCountry "GRE"]
[SourceTitle "playchess.com"]
[Source "ChessBase"]
[SourceQuality "1"]
[TimeControl "5400+30"]

1. d4 {[%emt 0:00:00]} Nf6 {[%emt 0:03:48]} 2. Bg5 {[%emt 0:00:00]} d5 {[%emt 0:02:01]} 3. e3 {[%emt 0:01:34]} e6 {[%emt 0:06:14]} 4. Nf3 {[%emt 0:01:04]} Bd6 {[%emt 0:01:12]} 5. Bd3 {[%emt 0:04:43]} O-O {[%emt 0:00:29]} 6. Nbd2 {[%emt 0:01:57]} Nbd7 {[%emt 0:00:21]} 7. c4 {[%emt 0:04:14]} c5 {[%emt 0:00:15]} 8. O-O {[%emt 0:01:28]} b6 {[%emt 0:00:36]} 9. e4 {[%emt 0:03:54]} e5 {[%emt 0:01:35]} 10. exd5 {[%emt 0:03:52]} exd4 {[%emt 0:02:09]} 11. Ne4 {[%emt 0:02:13]} Qc7 {[%emt 0:01:23]} 12. Nxf6+ {[%emt 0:04:27]} Nxf6 {[%emt 0:00:08]} 13. Bxf6 {[%emt 0:00:32]} gxf6 {[%emt 0:00:06]} 14. h3 {[%emt 0:09:16]} Kh8 {[%emt 0:06:42]} 15. Nh4 {[%emt 0:05:11]} Rg8 {[%emt 0:05:06]} 16. Qf3 {[%emt 0:05:29]} Be5 {[%emt 0:00:48]} 17. Rae1 {[%emt 0:04:52]} Bd7 {[%emt 0:03:49]} 18. d6 {[%emt 0:14:43]} Qc8 {[%emt 0:05:10]} 19. Nf5 {[%emt 0:02:43]} Bc6 {[%emt 0:01:29]} 20. Be4 {[%emt 0:00:11]} Bxe4 {[%emt 0:00:41]} 21. Rxe4 {[%emt 0:02:19]} Qe6 {[%emt 0:06:37]} 22. Rh4 {[%emt 0:00:54]} 1-0